fUSD/lending_fUSD_20251017
["ID","MTS","AMOUNT","RATE_DAILY","PERIOD"]
[391674947,1760725839613,-250.0,0.00019878,2]
[391674949,1760725839623,-1381.48898188,0.000199,2]
[391674951,1760725839633,-785.0,0.00019965,2]
[391674953,1760725839641,-364.29764002,0.00019967,2]
[391674955,1760725839652,-500.0,0.00019967,2]
[391674957,1760725839660,-8300.0,0.0002,4]
[391674959,1760725839669,-40215.42551848,0.0002,2]
[391674961,1760725839680,-15805.65623738,0.0002,14]
[391674963,1760725839689,-987.82400003,0.0002,2]
[391674965,1760725839699,-1000.0,0.0002,4]
[391674967,1760725839709,-1381.48898188,0.000201,2]
[391674969,1760725839718,-451.24017531,0.00020169,2]
[391674971,1760725839727,-1381.48898188,0.000203,2]
[391674973,1760725839737,-1381.48898188,0.000205,2]
[391674975,1760725839746,-400.0,0.00020548,2]
[391674977,1760725839755,-160.0,0.00020572,2]
[391674979,1760725839764,-1381.48898188,0.000207,2]
[391674981,1760725839775,-18819.52601407,0.000207,2]
[391674983,1760725839784,-31222.37119782,0.0002085,2]
[391674985,1760725839793,-1381.48898188,0.000209,2]
[391674987,1760725839803,-39946.83256313,0.000209,30]
[391674989,1760725839812,-5675.61729623,0.00020955,2]
[391674991,1760725839821,-1381.48898188,0.000211,2]
[391674993,1760725839830,-1381.48898188,0.000213,2]
[391674995,1760725839839,-8654.99690734,0.000215,2]
[391674997,1760725839848,-161.38589304,0.00021633,2]
[391674999,1760725839858,-150.15448368,0.00021633,2]
[391675001,1760725839867,-3243.0,0.00021667,2]
[391675003,1760725839877,-500.0,0.00021917,2]
[391675005,1760725839887,-500.0,0.00021917,2]
[391675007,1760725839896,-500.0,0.00021917,2]
[391675009,1760725839905,-500.0,0.00021917,2]
[391675011,1760725839915,-500.0,0.00021917,2]
[391675013,1760725839924,-500.0,0.00021917,2]
[391675014,1760725839935,-500.0,0.00021917,2]
[391675015,1760725839944,-500.0,0.00021917,2]
[391675016,1760725839955,-500.0,0.00021917,2]
[391675017,1760725839965,-20442.34660286,0.00022,4]
[391675018,1760725839975,-348.85478134,0.00022011,2]
[391675019,1760725839991,-150.0,0.00022697,2]
[391675020,1760725840001,-224.52,0.00023254,2]
[391675021,1760725840011,-3295.03621571,0.00023326,2]
[391675022,1760725840020,-10800.0,0.000239,8]
[391675023,1760725840030,-1300.0,0.000239,8]
[391675024,1760725840040,-5675.61729623,0.00023982,2]
[391675025,1760725840050,-300.0,0.00023999,2]
[391675026,1760725840060,-300.0,0.00023999,2]
[391675028,1760725840070,-300.0,0.00023999,2]
[391675030,1760725840079,-500.0,0.00023999,2]
[391675032,1760725840089,-95963.2637978,0.00024,2]
[391675034,1760725840098,-5568.41,0.00024,7]
[391675036,1760725840108,-461.97165921,0.00024,2]
[391675038,1760725840119,-390.296706,0.00024,2]
[391675041,1760725840129,-154.57,0.00024515,2]
[391675043,1760725840139,-500.0,0.00024525,2]
[391675045,1760725840148,-500.0,0.00024657,2]
[391675047,1760725840158,-500.0,0.00024657,2]
[391675049,1760725840167,-500.0,0.00024657,2]
[391675051,1760725840177,-526.87550729,0.00024657,2]
[391675053,1760725840188,-500.0,0.00024657,2]
[391675055,1760725840197,-506.69186955,0.00024657,2]
[391675057,1760725840206,-1219.2,0.00024657,2]
[391675059,1760725840216,-500.0,0.00024657,2]
[391675061,1760725840226,-500.0,0.00024657,2]
[391675063,1760725840239,-500.0,0.00024657,2]
[391675066,1760725840258,-500.0,0.00024657,2]
[391675068,1760725840271,-500.0,0.00024657,2]
[391675070,1760725840281,-500.0,0.00024657,2]
[391675072,1760725840292,-514.4,0.00024657,2]
[391675075,1760725840303,-502.53687741,0.00024657,2]
[391675077,1760725840314,-500.0,0.00024657,2]
[391675079,1760725840325,-500.0,0.00024657,2]
[391675081,1760725840335,-500.0,0.00024657,2]
[391675082,1760725840345,-500.0,0.00024657,2]
[391675084,1760725840355,-500.0,0.00024657,2]
[391675086,1760725840366,-500.0,0.00024657,2]
[391675088,1760725840375,-500.0,0.00024657,2]
[391675091,1760725840385,-500.0,0.00024657,2]
[391675093,1760725840395,-500.0,0.00024657,2]
[391675095,1760725840405,-500.48840841,0.00024657,2]
[391675097,1760725840415,-500.0,0.00024657,2]
[391675099,1760725840425,-500.0,0.00024657,2]
[391675101,1760725840436,-500.0,0.00024657,2]
[391675103,1760725840446,-500.0,0.00024657,2]
[391675105,1760725840456,-528.72230801,0.00024657,2]
[391675107,1760725840466,-406.46758997,0.00024657,2]
[391675109,1760725840476,-500.0,0.00024657,2]
[391675111,1760725840486,-500.0,0.00024657,2]
[391675113,1760725840496,-500.0,0.00024657,2]
[391675115,1760725840506,-500.0,0.00024657,2]
[391675117,1760725840515,-500.0,0.00024657,2]
[391675119,1760725840525,-501.03696464,0.00024657,2]
[391675121,1760725840535,-459.32671077,0.00024657,2]
[391675123,1760725840545,-502.06004589,0.00024657,2]
[391675125,1760725840555,-500.0,0.00024657,2]
[391675127,1760725840565,-502.49491789,0.00024657,2]
[391675130,1760725840575,-500.0,0.00024657,2]
[391675131,1760725840584,-501.61411931,0.00024657,2]
[391675134,1760725840595,-503.07052593,0.00024657,2]
[391675136,1760725840604,-500.0,0.00024657,2]
[391675138,1760725840614,-500.0,0.00024657,2]
[391675140,1760725840623,-500.0,0.00024657,2]
[391675142,1760725840633,-500.0,0.00024657,2]
[391675144,1760725840643,-583.81871619,0.00024657,2]
[391675146,1760725840652,-500.0,0.00024657,2]
[391675148,1760725840661,-500.0,0.00024657,2]
[391675150,1760725840671,-531.34,0.00024657,2]
[391675152,1760725840683,-500.0,0.00024657,2]
[391675154,1760725840692,-500.0,0.00024657,2]
[391675156,1760725840702,-500.0,0.00024657,2]
[391675158,1760725840712,-500.0,0.00024657,2]
[391675160,1760725840722,-500.0,0.00024657,2]
[391675162,1760725840732,-500.0,0.00024657,2]
[391675164,1760725840741,-500.0,0.00024657,2]
[391675166,1760725840751,-500.0,0.00024657,2]
[391675168,1760725840761,-500.0,0.00024657,2]
[391675170,1760725840771,-500.0,0.00024657,2]
[391675172,1760725840781,-500.0,0.00024657,2]
[391675174,1760725840790,-511.91079126,0.00024657,2]
[391675176,1760725840800,-500.0,0.00024657,2]
[391675179,1760725840810,-500.0,0.00024657,2]
[391675181,1760725840820,-500.0,0.00024657,2]
[391675183,1760725840829,-500.0,0.00024657,2]
[391675185,1760725840839,-500.0,0.00024657,2]
[391675187,1760725840848,-324.53229901,0.00024657,2]
[391675189,1760725840858,-500.0,0.00024657,2]
[391675191,1760725840869,-500.0,0.00024657,2]
[391675193,1760725840878,-500.0,0.00024657,2]
[391675195,1760725840888,-500.0,0.00024657,2]
[391675197,1760725840898,-500.0,0.00024657,2]
[391675199,1760725840908,-500.0,0.00024657,2]
[391675201,1760725840918,-500.0,0.00024657,2]
[391675203,1760725840927,-500.0,0.00024657,2]
[391675205,1760725840937,-300.0,0.00024799,10]
[391675207,1760725840947,-461279.291988,0.000248,3]
[391675209,1760725840957,-500.0,0.00024841,2]
[391675211,1760725840967,-151.0,0.00024897,7]
[391675213,1760725840977,-300.0,0.00024899,10]
[391675215,1760725840987,-398336.645224,0.000249,3]
[391675217,1760725840997,-500.0,0.00024931,2]
[391675219,1760725841006,-510.57,0.00024931,2]
[391675221,1760725841018,-500.0,0.00024931,2]
[391675223,1760725841028,-500.0,0.00024931,2]
[391675226,1760725841038,-1219.2,0.00024931,2]
[391675228,1760725841048,-500.0,0.00024931,2]
[391675230,1760725841058,-500.0,0.00024931,2]
[391675232,1760725841067,-500.0,0.00024931,2]
[391675234,1760725841078,-500.0,0.00024931,2]
[391675236,1760725841087,-500.0,0.00024931,2]
[391675238,1760725841097,-514.4,0.00024931,2]
[391675240,1760725841107,-500.0,0.00024931,2]
[391675242,1760725841116,-612.33002362,0.00024931,2]
[391675244,1760725841127,-500.0,0.00024931,2]
[391675246,1760725841139,-500.0,0.00024931,2]
[391675248,1760725841149,-500.0,0.00024931,2]
[391675251,1760725841158,-500.0,0.00024931,2]
[391675253,1760725841168,-500.0,0.00024931,2]
[391675255,1760725841178,-500.0,0.00024931,2]
[391675257,1760725841189,-500.0,0.00024931,2]
[391675259,1760725841199,-500.0,0.00024931,2]
[391675261,1760725841210,-500.0,0.00024931,2]
[391675263,1760725841219,-500.0,0.00024931,2]
[391675265,1760725841230,-500.0,0.00024931,2]
[391675267,1760725841245,-500.0,0.00024931,2]
[391675269,1760725841255,-500.0,0.00024931,2]
[391675272,1760725841265,-500.0,0.00024931,2]
[391675274,1760725841276,-500.0,0.00024931,2]
[391675276,1760725841287,-500.0,0.00024931,2]
[391675278,1760725841297,-210.02017578,0.00024931,2]
[391675280,1760725841307,-500.0,0.00024931,2]
[391675282,1760725841317,-500.0,0.00024931,2]
[391675284,1760725841327,-531.34,0.00024931,2]
[391675286,1760725841338,-500.0,0.00024931,2]
[391675288,1760725841347,-500.0,0.00024931,2]
[391675290,1760725841357,-500.0,0.00024931,2]
[391675292,1760725841368,-500.0,0.00024931,2]
[391675294,1760725841379,-500.0,0.00024931,2]
[391675297,1760725841390,-500.0,0.00024931,2]
[391675299,1760725841400,-500.0,0.00024931,2]
[391675301,1760725841410,-500.0,0.00024931,2]
[391675303,1760725841420,-500.0,0.00024931,2]
[391675305,1760725841430,-500.0,0.00024931,2]
[391675307,1760725841441,-500.0,0.00024931,2]
[391675309,1760725841451,-500.0,0.00024931,2]
[391675311,1760725841460,-500.0,0.00024931,2]
[391675313,1760725841470,-500.0,0.00024931,2]
[391675315,1760725841480,-500.0,0.00024931,2]
[391675317,1760725841490,-500.0,0.00024931,2]
[391675319,1760725841501,-500.0,0.00024931,2]
[391675321,1760725841511,-500.0,0.00024931,2]
[391675346,1760725841523,-500.0,0.00024931,2]
[391675349,1760725841738,-500.0,0.00024931,2]
[391675351,1760725841747,-500.0,0.00024931,2]
[391675353,1760725841757,-255.50848305,0.00024931,2]
[391675355,1760725841766,-1881.99999985,0.00025,7]
[391675357,1760725841775,-1000.0,0.00025073,2]
[391675359,1760725841785,-500.0,0.00025115,2]
[391675361,1760725841794,-396.46,0.00025205,2]
[391675364,1760725841807,-491.78607027,0.00025205,2]
[391675366,1760725841817,-500.0,0.00025205,2]
[391675368,1760725841826,-1219.2,0.00025205,2]
[391675370,1760725841835,-400.76150999,0.00025205,2]
[391675372,1760725841844,-500.0,0.00025205,2]
[391675373,1760725841854,-500.0,0.00025205,2]
[391675375,1760725841863,-500.0,0.00025205,2]
[391675378,1760725841873,-500.0,0.00025205,2]
[391675380,1760725841883,-514.4,0.00025205,2]
[391675382,1760725841892,-500.0,0.00025205,2]
[391675384,1760725841901,-500.0,0.00025205,2]
[391675386,1760725841910,-504.49515593,0.00025205,2]
[391675388,1760725841919,-500.0,0.00025205,2]
[391675390,1760725841928,-500.0,0.00025205,2]
[391675392,1760725841939,-543.59552556,0.00025205,2]
[391675394,1760725841948,-500.0,0.00025205,2]
[391675396,1760725841958,-457.41416845,0.00025205,2]
[391675398,1760725841967,-500.0,0.00025205,2]
[391675400,1760725841976,-500.0,0.00025205,2]
[391675402,1760725841986,-500.0,0.00025205,2]
[391675404,1760725841996,-500.0,0.00025205,2]
[391675406,1760725842006,-500.0,0.00025205,2]
[391675408,1760725842015,-500.0,0.00025205,2]
[391675410,1760725842025,-500.0,0.00025205,2]
[391675412,1760725842035,-531.34,0.00025205,2]
[391675414,1760725842044,-500.0,0.00025205,2]
[391675416,1760725842054,-500.0,0.00025205,2]
[391675418,1760725842063,-500.0,0.00025205,2]
[391675420,1760725842073,-500.0,0.00025205,2]
[391675422,1760725842083,-500.0,0.00025205,2]
[391675424,1760725842092,-500.0,0.00025205,2]
[391675426,1760725842102,-500.0,0.00025205,2]
[391675428,1760725842111,-500.0,0.00025205,2]
[391675430,1760725842122,-501.5293171,0.00025205,2]
[391675432,1760725842132,-302.98599027,0.00025205,2]
[391675434,1760725842142,-500.0,0.00025205,2]
[391675436,1760725842151,-500.0,0.00025205,2]
[391675438,1760725842161,-500.0,0.00025205,2]
[391675440,1760725842170,-500.0,0.00025205,2]
[391675442,1760725842179,-500.0,0.00025205,2]
[391675444,1760725842190,-500.0,0.00025205,2]
[391675446,1760725842199,-500.0,0.00025205,2]
[391675448,1760725842208,-500.0,0.00025205,2]
[391675450,1760725842217,-500.0,0.00025205,2]
[391675452,1760725842227,-500.83910423,0.00025389,2]
[391675454,1760725842239,-500.0,0.00025479,2]
[391675456,1760725842250,-1219.2,0.00025479,2]
[391675458,1760725842259,-500.0,0.00025479,2]
[391675460,1760725842269,-500.0,0.00025479,2]
[391675462,1760725842278,-500.0,0.00025479,2]
[391675464,1760725842288,-500.0,0.00025479,2]
[391675466,1760725842298,-514.4,0.00025479,2]
[391675468,1760725842309,-500.0,0.00025479,2]
[391675470,1760725842318,-500.0,0.00025479,2]
[391675472,1760725842328,-500.0,0.00025479,2]
[391675474,1760725842338,-500.0,0.00025479,2]
[391675476,1760725842347,-500.0,0.00025479,2]
[391675478,1760725842357,-500.0,0.00025479,2]
[391675481,1760725842367,-500.0,0.00025479,2]
[391675483,1760725842378,-500.0,0.00025479,2]
[391675485,1760725842388,-531.34,0.00025479,2]
[391675487,1760725842398,-201.43947205,0.00025479,2]
[391675488,1760725842407,-500.0,0.00025479,2]
[391675489,1760725842416,-500.0,0.00025479,2]
[391675490,1760725842425,-500.0,0.00025479,2]
[391675492,1760725842434,-500.0,0.00025479,2]
[391675494,1760725842443,-500.0,0.00025479,2]
[391675496,1760725842454,-500.0,0.00025479,2]
[391675498,1760725842463,-500.0,0.00025479,2]
[391675500,1760725842473,-500.0,0.00025479,2]
[391675502,1760725842483,-500.0,0.00025479,2]
[391675504,1760725842492,-348.85478134,0.00025567,2]
[391675506,1760725842502,-1500.0,0.00025621,2]
[391675508,1760725842511,-500.0,0.00025753,2]
[391675510,1760725842520,-1219.2,0.00025753,2]
[391675512,1760725842530,-150.99711564,0.00025753,2]
[391675514,1760725842539,-500.0,0.00025753,2]
[391675516,1760725842548,-514.4,0.00025753,2]
[391675518,1760725842558,-500.0,0.00025753,2]
[391675520,1760725842567,-500.0,0.00025753,2]
[391675522,1760725842577,-500.0,0.00025753,2]
[391675524,1760725842587,-500.0,0.00025753,2]
[391675526,1760725842597,-503.14608184,0.00025753,2]
[391675528,1760725842606,-531.34,0.00025753,2]
[391675530,1760725842616,-500.0,0.00025753,2]
[391675532,1760725842626,-500.0,0.00025753,2]
[391675534,1760725842635,-500.0,0.00025753,2]
[391675536,1760725842644,-500.0,0.00025753,2]
[391675538,1760725842654,-500.0,0.00025753,2]
[391675540,1760725842663,-500.0,0.00025753,2]
[391675542,1760725842673,-500.0,0.00025753,2]
[391675544,1760725842682,-500.0,0.00025753,2]
[391675546,1760725842691,-4135.67720157,0.000259,2]
[391675548,1760725842701,-161.76830817,0.00025958,2]
[391675550,1760725842710,-557.02486353,0.00026,2]
[391675552,1760725842720,-2065.08422593,0.00026,7]
[391675555,1760725842729,-500.0,0.00026027,2]
[391675557,1760725842739,-1219.2,0.00026027,2]
[391675559,1760725842748,-500.0,0.00026027,2]
[391675561,1760725842758,-514.4,0.00026027,2]
[391675563,1760725842767,-500.0,0.00026027,2]
[391675565,1760725842777,-500.0,0.00026027,2]
[391675567,1760725842787,-431.82,0.00026027,2]
[391675569,1760725842797,-531.34,0.00026027,2]
[391675571,1760725842806,-500.0,0.00026027,2]
[391675573,1760725842815,-500.0,0.00026027,2]
[391675575,1760725842824,-500.0,0.00026027,2]
[391675577,1760725842833,-500.0,0.00026027,2]
[391675579,1760725842842,-500.0,0.00026027,2]
[391675581,1760725842851,-500.0,0.00026027,2]
[391675583,1760725842861,-500.0,0.00026027,2]
[391675585,1760725842870,-2000.0,0.00026169,2]
[391675587,1760725842879,-5852.194,0.00026282,12]
[391675589,1760725842888,-368.656,0.00026282,12]
[391675591,1760725842897,-478.21820718,0.00026301,2]
[391675593,1760725842907,-1219.2,0.00026301,2]
[391675595,1760725842915,-500.0,0.00026301,2]
[391675597,1760725842925,-514.4,0.00026301,2]
[391675599,1760725842935,-500.0,0.00026301,2]
[391675601,1760725842945,-500.0,0.00026301,2]
[391675603,1760725842955,-531.34,0.00026301,2]
[391675605,1760725842964,-500.0,0.00026301,2]
[391675607,1760725842973,-500.0,0.00026301,2]
[391675609,1760725842983,-500.0,0.00026301,2]
[391675611,1760725842993,-420.12,0.00026301,2]
[391675613,1760725843003,-500.0,0.00026301,2]
[391675615,1760725843013,-494.0,0.00026301,2]
[391675617,1760725843023,-500.0,0.00026301,2]
[391675619,1760725843032,-7475.18,0.00026354,2]
[391675621,1760725843041,-1219.26,0.00026575,2]
[391675623,1760725843050,-500.0,0.00026575,2]
[391675625,1760725843059,-514.4,0.00026575,2]
[391675628,1760725843069,-500.0,0.00026575,2]
[391675631,1760725843078,-302.65,0.00026575,2]
[391675633,1760725843088,-531.34,0.00026575,2]
[391675635,1760725843097,-500.0,0.00026575,2]
[391675637,1760725843107,-500.0,0.00026575,2]
[391675639,1760725843116,-500.0,0.00026575,2]
[391675641,1760725843125,-500.0,0.00026575,2]
[391675643,1760725843135,-500.0,0.00026575,2]
[391675645,1760725843144,-500.0,0.00026849,2]
[391675647,1760725843153,-514.4,0.00026849,2]
[391675648,1760725843162,-500.0,0.00026849,2]
[391675651,1760725843172,-531.34,0.00026849,2]
[391675653,1760725843181,-500.0,0.00026849,2]
[391675654,1760725843192,-500.0,0.00026849,2]
[391675656,1760725843202,-500.0,0.00026849,2]
[391675658,1760725843211,-500.0,0.00026849,2]
[391675660,1760725843221,-441.89343001,0.00026849,2]
[391675662,1760725843231,-5675.61729623,0.0002701,2]
[391675664,1760725843245,-500.0,0.00027123,2]
[391675666,1760725843254,-514.4,0.00027123,2]
[391675668,1760725843264,-585.90399957,0.00027123,2]
[391675671,1760725843274,-531.34,0.00027123,2]
[391675672,1760725843284,-500.0,0.00027123,2]
[391675674,1760725843294,-500.0,0.00027123,2]
[391675676,1760725843303,-500.0,0.00027123,2]
[391675678,1760725843315,-418.2052984,0.00027123,2]
[391675680,1760725843325,-500.0,0.00027233,2]
[391675682,1760725843334,-500.0,0.00027233,2]
[391675685,1760725843344,-5568.41,0.000273,7]
[391675686,1760725843355,-2033.7725,0.00027397,2]
[391675688,1760725843364,-500.0,0.00027397,2]
[391675690,1760725843374,-514.4,0.00027397,2]
[391675692,1760725843383,-531.34,0.00027397,2]
[391675694,1760725843392,-592.51,0.00027397,2]
[391675696,1760725843401,-500.0,0.00027397,2]
[391675698,1760725843411,-500.0,0.00027397,2]
[391675700,1760725843420,-10662.02,0.000274,2]
[391675702,1760725843430,-1340.6,0.000274,7]
[391675704,1760725843440,-1342.86,0.000274,2]
[391675706,1760725843449,-1000.0,0.000275,4]
[391675708,1760725843459,-228.87,0.0002759,2]
[391675710,1760725843468,-500.0,0.00027671,17]
[391675712,1760725843477,-514.4,0.00027671,17]
[391675714,1760725843486,-531.34,0.00027671,17]
[391675716,1760725843495,-332.28,0.00027671,17]
[391675718,1760725843505,-500.0,0.00027671,17]
[391675720,1760725843514,-166.66,0.00027934,30]
[391675722,1760725843523,-500.0,0.00027945,17]
[391675724,1760725843533,-514.4,0.00027945,17]
[391675726,1760725843542,-531.34,0.00027945,17]
[391675727,1760725843553,-500.0,0.00027945,17]
[391675729,1760725843563,-18578.52159698,0.00028,60]
[391675731,1760725843572,-161.76830817,0.00028121,2]
[391675734,1760725843581,-300.0,0.00028145,34]
[391675735,1760725843591,-500.0,0.00028219,17]
[391675737,1760725843600,-514.4,0.00028219,17]
[391675739,1760725843610,-531.34,0.00028219,17]
[391675741,1760725843621,-500.0,0.00028219,17]
[391675743,1760725843630,-209.19213436,0.00028253,4]
[391675745,1760725843639,-227.74215593,0.00028253,4]
[391675747,1760725843649,-272.27114154,0.00028493,17]
[391675749,1760725843658,-514.4,0.00028493,17]
[391675751,1760725843667,-531.34,0.00028493,17]
[391675753,1760725843680,-217.22,0.00028493,17]
[391675756,1760725843691,-166.66,0.00028522,30]
[391675757,1760725843700,-1500.0,0.00028642,120]
[391675760,1760725843710,-3788.81163025,0.00028717,2]
[391675761,1760725843719,-514.4,0.00028767,17]
[391675763,1760725843729,-531.34,0.00028767,17]
[391675765,1760725843738,-40000.0,0.000288,10]
[391675767,1760725843747,-16000.0,0.00029,2]
[391675769,1760725843756,-514.4,0.00029041,17]
[391675771,1760725843765,-531.34,0.00029041,17]
[391675773,1760725843775,-1340.6,0.000291,7]
[391675775,1760725843784,-1342.86,0.000291,2]
[391675777,1760725843793,-166.66,0.0002911,30]
[391675779,1760725843802,-348.85478134,0.00029122,15]
[391675781,1760725843811,-8725.75788484,0.0002928,2]
[391675783,1760725843820,-5000.0,0.0002928,2]
[391675785,1760725843830,-5000.0,0.0002928,2]
[391675787,1760725843839,-5000.0,0.0002928,2]
[391675789,1760725843849,-5000.0,0.0002928,2]
[391675791,1760725843858,-514.4,0.00029315,17]
[391675793,1760725843867,-531.34,0.00029315,17]
[391675795,1760725843876,-3357.44,0.00029416,2]
[391675797,1760725843885,-514.4,0.00029589,17]
[391675799,1760725843894,-531.34,0.00029589,17]
[391675801,1760725843903,-166.66,0.00029698,30]
[391675803,1760725843912,-613.1244,0.000298,2]
[391675805,1760725843921,-1332.5,0.000298,2]
[391675807,1760725843930,-12419.03197723,0.00029821,2]
[391675809,1760725843942,-3665.83827054,0.00029821,2]
[391675811,1760725843951,-1879.31369167,0.00029832,2]
[391675813,1760725843960,-1522.81676774,0.00029834,2]
[391675815,1760725843969,-1398.12818825,0.00029838,2]
[391675817,1760725843979,-1879.31369167,0.00029839,2]
[391675819,1760725843987,-776.7827855,0.0002984,2]
[391675825,1760725844036,-517.85519035,0.0002984,2]
[391675827,1760725844045,-167.00683219,0.00029841,2]
[391675829,1760725844055,-17773.18157323,0.00029849,2]
[391675831,1760725844064,-2329.39323874,0.00029852,2]
[391675833,1760725844073,-404.25355511,0.00029861,2]
[391675835,1760725844082,-1284.18749287,0.00029863,2]
[391675837,1760725844091,-514.4,0.00029863,17]
[391675839,1760725844100,-531.34,0.00029863,17]
[391675841,1760725844110,-17773.18157323,0.00029864,2]
[391675843,1760725844120,-1522.81676774,0.00029865,2]
[391675845,1760725844129,-1284.18749287,0.00029865,2]
[391675847,1760725844138,-167.00683219,0.00029866,2]
[391675849,1760725844146,-167.00683219,0.00029872,2]
[391675851,1760725844155,-500.0,0.00029873,5]
[391675853,1760725844165,-9275.85867664,0.00029873,2]
[391675855,1760725844174,-167.00683219,0.00029875,2]
[391675857,1760725844183,-1808.89998799,0.00029876,2]
[391675859,1760725844194,-1879.31369167,0.00029878,2]
[391675861,1760725844203,-1114.52924883,0.00029878,2]
[391675863,1760725844212,-1808.89998799,0.0002988,2]
[391675865,1760725844221,-2329.39323874,0.00029881,2]
[391675867,1760725844235,-1398.12818825,0.00029885,2]
[391675868,1760725844244,-1284.18749287,0.00029887,2]
[391675870,1760725844253,-12419.03197723,0.0002989,2]
[391675872,1760725844262,-2329.39323874,0.00029897,2]
[391675874,1760725844271,-1114.52924883,0.00029901,2]
[391675876,1760725844283,-3665.83827054,0.00029913,2]
[391675878,1760725844292,-776.7827855,0.00029919,2]
[391675880,1760725844301,-517.85519035,0.0002992,2]
[391675882,1760725844312,-776.7827855,0.00029924,2]
[391675884,1760725844321,-404.25355511,0.00029929,2]
[391675886,1760725844330,-517.85519035,0.00029929,2]
[391675888,1760725844339,-1808.89998799,0.0002993,2]
[391675890,1760725844349,-1522.81676774,0.00029933,2]
[391675892,1760725844358,-1114.52924883,0.00029934,2]
[391675894,1760725844367,-1879.31369167,0.00029936,2]
[391675896,1760725844377,-17773.18157323,0.00029942,2]
[391675898,1760725844386,-9275.85867664,0.00029943,2]
[391675900,1760725844395,-1808.89998799,0.00029949,2]
[391675901,1760725844404,-1114.52924883,0.00029949,2]
[391675903,1760725844414,-1398.12818825,0.00029949,2]
[391675905,1760725844423,-12419.03197723,0.00029951,2]
[391675907,1760725844433,-1398.12818825,0.00029958,2]
[391675909,1760725844443,-12419.03197723,0.00029962,2]
[391675911,1760725844452,-9275.85867664,0.00029964,2]
[391675913,1760725844462,-3665.83827054,0.00029965,2]
[391675915,1760725844471,-404.25355511,0.00029967,2]
[391675917,1760725844481,-404.25355511,0.00029967,2]
[391675919,1760725844491,-17773.18157323,0.00029968,2]
[391675921,1760725844500,-9275.85867664,0.00029969,2]
[391675923,1760725844510,-776.7827855,0.00029977,2]
[391675925,1760725844519,-2329.39323874,0.00029977,2]
[391675927,1760725844529,-1284.18749287,0.00029983,2]
[391675929,1760725844539,-1522.81676774,0.00029984,2]
[391675931,1760725844548,-3665.83827054,0.00029985,2]
[391675933,1760725844558,-517.85519035,0.00029999,2]
[391675935,1760725844568,-2000.0,0.0003,30]
[391675937,1760725844577,-2731.73356622,0.0003,120]
[391675939,1760725844586,-5675.61729623,0.00030037,2]
[391675941,1760725844596,-668.48960045,0.0003013,120]
[391675943,1760725844605,-4067.545,0.00030136,3]
[391675946,1760725844615,-514.4,0.00030136,17]
[391675947,1760725844624,-531.34,0.00030136,17]
[391675949,1760725844634,-500.0,0.00030213,120]
[391675951,1760725844643,-500.0,0.00030213,120]
[391675953,1760725844652,-161.76830817,0.00030284,2]
[391675955,1760725844661,-166.66,0.00030286,30]
[391675957,1760725844671,-1340.6,0.000303,30]
[391675959,1760725844680,-1342.86,0.000303,2]
[391675961,1760725844690,-388.46991561,0.00030317,2]
[391675963,1760725844700,-11081.00959497,0.00030389,30]
[391675965,1760725844709,-514.4,0.0003041,17]
[391675967,1760725844719,-531.34,0.0003041,17]